bitfinex-derivatives/quotes_SOLF0:USTF0_20250903
["timestamp","ask_amount","ask_price","bid_price","bid_amount"]
[1756891554871,3.6791076,208.86,208.84,7.64]
[1756891555072,5.28202426,208.91,208.85,1.61450851]
[1756891555384,5.28202426,208.92,208.86,7.64]
[1756891555674,9.05202426,208.92,208.88,7.64]
[1756891559679,5.28202426,208.92,208.88,7.64]
[1756891559881,3.77,208.91,208.88,7.64]
[1756891560376,5.28202426,208.92,208.87,7.64]
[1756891560578,5.28202426,208.92,208.86,9.25450851]
[1756891563381,5.28202426,208.93,208.88,1.61450851]
[1756891563881,5.28202426,208.93,208.89,7.64]
[1756891564085,3.77,208.94,208.89,7.64]
[1756891564086,9.05202426,208.94,208.89,7.64]
[1756891564377,5.28202426,208.94,208.89,7.64]
[1756891564581,9.05202426,208.94,208.89,7.64]
[1756891564773,3.77,208.93,208.89,7.64]
[1756891564980,3.77,208.93,208.85,7.64]
[1756891565173,1.61450851,208.92,208.85,9.25450851]
[1756891566377,9.05202426,208.93,208.85,9.25450851]
[1756891567378,3.77,208.93,208.85,9.25450851]
[1756891567778,9.05202426,208.93,208.85,9.25450851]
[1756891569482,1.61450851,208.92,208.85,7.64]
[1756891569684,5.28202426,208.91,208.85,7.64]
[1756891569882,6.89653277,208.92,208.85,7.64]
[1756891571488,5.28202426,208.91,208.85,7.64]
[1756891571887,5.35450851,208.9,208.8,7.99]
[1756891572188,1.61450851,208.88,208.8,9.60450851]
[1756891575790,5.28202426,208.89,208.83,7.99]
[1756891578387,3.74,208.87,208.83,7.99]
[1756891578790,5.28202426,208.89,208.83,7.99]
[1756891579389,5.28202426,208.9,208.84,1.61450851]
[1756891579989,9.02202426,208.91,208.84,1.61450851]
[1756891580685,9.02202426,208.91,208.85,7.99]
[1756891581987,5.28202426,208.91,208.86,1.61450851]
[1756891582192,5.28202426,208.93,208.87,7.99]
[1756891585290,5.28202426,208.92,208.86,1.61450851]
[1756891585492,5.28202426,208.92,208.87,7.99]
[1756891585696,5.28202426,208.92,208.86,1.61450851]
[1756891585897,5.28202426,208.92,208.87,7.99]
[1756891586096,5.28202426,208.92,208.86,1.61450851]
[1756891586297,5.28202426,208.92,208.87,7.99]
[1756891586498,5.28202426,208.92,208.86,1.61450851]
[1756891586700,5.28202426,208.92,208.86,9.60450851]
[1756891587795,5.28202426,208.94,208.88,1.61450851]
[1756891587994,5.28202426,208.94,208.89,7.99]
[1756891588198,5.28202426,208.93,208.88,9.60450851]
[1756891588395,5.28202426,208.93,208.89,7.99]
[1756891589001,5.28202426,208.93,208.88,1.61450851]
[1756891589297,5.28202426,208.93,208.89,7.99]
[1756891589498,11.70360183,208.96,208.93,7.99]
[1756891589499,5.28202426,208.96,208.93,7.99]
[1756891589695,5.28202426,208.96,208.92,1.61450851]
[1756891589899,5.28202426,208.97,208.93,7.99]
[1756891590101,5.28202426,208.97,208.92,1.61450851]
[1756891590299,5.28202426,208.97,208.94,1.61450851]
[1756891590502,5.28202426,209.0,208.97,7.99]
[1756891591795,5.28202426,209.01,208.96,1.61450851]
[1756891591991,5.28202426,209.01,208.97,7.99]
[1756891592394,5.28202426,209.01,208.96,1.61450851]
[1756891592896,5.28202426,209.01,208.97,7.99]
[1756891593301,9.02202426,209.01,208.97,7.99]
[1756891593695,5.28202426,209.01,208.99,7.99]
[1756891593895,5.28202426,209.02,208.99,7.99]
[1756891594100,5.28202426,209.02,208.98,1.61450851]
[1756891594101,5.28202426,209.01,208.98,1.61450851]
[1756891594303,5.28202426,209.02,208.99,7.99]
[1756891594497,5.28202426,209.02,208.83,4.02998195]
[1756891594704,5.28202426,209.01,208.94,1.61450851]
[1756891594893,5.28202426,209.0,208.94,1.61450851]
[1756891595201,9.02202426,208.99,208.93,7.99]
[1756891595401,10.63653277,208.99,208.93,7.99]
[1756891597403,3.74,208.96,208.88,9.60450851]
[1756891597604,1.61450851,208.95,208.88,9.60450851]
[1756891597901,3.74,208.96,208.88,9.60450851]
[1756891598903,3.74,208.96,208.89,1.61450851]
[1756891600404,5.28202426,208.97,208.9,7.99]
[1756891600704,9.02202426,208.97,208.9,7.99]
[1756891601499,10.63653277,208.97,208.9,7.99]
[1756891605204,3.74,208.97,208.91,1.61450851]
[1756891605999,5.35450851,208.97,208.9,7.99]
[1756891606201,3.74,208.94,208.87,7.5]
[1756891607603,1.61450851,208.93,208.87,7.5]
[1756891608309,3.74,208.92,208.84,1.61450851]
[1756891608509,1.61450851,208.89,208.83,7.5]
[1756891608805,6.89653277,208.89,208.83,7.5]
[1756891609009,1.61450851,208.89,208.83,7.5]
[1756891609207,9.02202426,208.9,208.83,9.11450851]
[1756891609512,3.74,208.9,208.83,9.11450851]
[1756891610710,1.61450851,208.88,208.81,1.61450851]
[1756891611308,1.61450851,208.86,208.8,7.5]
[1756891611905,5.35450851,208.86,208.8,7.5]
[1756891613410,5.35450851,208.86,208.77,1.61450851]
[1756891613411,3.74,208.83,208.74,7.5]
[1756891620709,9.02202426,208.87,208.78,7.5]
[1756891620917,3.74,208.87,208.78,7.5]
[1756891626719,2.52478774,208.85,208.71,2.52478774]
[1756891626914,3.74,208.84,208.72,7.5]
[1756891627814,2.52478774,208.85,208.72,7.5]
[1756891628016,3.74,208.84,208.72,7.5]
[1756891628424,2.52478774,208.85,208.72,7.5]
[1756891628723,3.75,208.84,208.72,7.5]
[1756891630621,3.75,208.81,208.72,7.5]
[1756891633625,2.52478774,208.84,208.72,10.02478774]
[1756891633831,3.75,208.86,208.75,2.52478774]
[1756891634029,3.75,208.86,208.76,7.69]
[1756891639831,3.75,208.86,208.77,7.69]
[1756891653238,5.28202426,208.86,208.77,7.69]
[1756891654143,9.03202426,208.86,208.77,7.69]
[1756891655444,5.28202426,208.85,208.77,7.69]
[1756891655740,3.75,208.84,208.77,7.69]
[1756891655946,9.03202426,208.84,208.77,7.69]
[1756891657248,3.75,208.84,208.77,7.69]
[1756891658144,5.28202426,208.85,208.77,7.69]
[1756891658449,5.28202426,208.86,208.77,7.69]
[1756891660350,9.03202426,208.86,208.77,7.69]
[1756891665651,9.03202426,208.86,208.78,7.42]
[1756891665857,5.28202426,208.88,208.81,7.42]
[1756891666556,9.01202426,208.88,208.81,7.42]
[1756891666752,110.6100762,208.91,208.81,7.42]
[1756891666753,3.73,208.85,208.81,7.42]
[1756891666956,3.73,208.85,208.73,18.4]
[1756891666957,3.73,208.85,208.78,7.42]
[1756891668359,9.01202426,208.85,208.78,7.42]
[1756891675061,3.73,208.83,208.74,7.42]
[1756891675266,9.01202426,208.83,208.74,7.42]
[1756891675567,3.73,208.82,208.74,9.0358396]
[1756891676266,9.01202426,208.82,208.74,9.0358396]
[1756891676669,9.01202426,208.82,208.74,7.42]
[1756891676968,9.01202426,208.82,208.74,9.0358396]
[1756891679175,9.01202426,208.82,208.74,7.42]
[1756891679367,9.01202426,208.82,208.75,1.6158396]
[1756891679569,9.01202426,208.82,208.76,7.42]
[1756891680865,5.28202426,208.82,208.76,7.42]
[1756891681067,3.73,208.81,208.76,7.42]
[1756891681265,3.73,208.8,208.76,7.42]
[1756891681464,1.6158396,208.81,208.76,7.42]
[1756891681973,6.89786386,208.81,208.76,7.42]
[1756891682367,3.73,208.8,208.76,7.42]
[1756891682569,6.89786386,208.81,208.73,1.6158396]
[1756891682763,5.28202426,208.82,208.76,7.42]
[1756891683367,5.28202426,208.82,208.76,9.0358396]
[1756891684175,5.28202426,208.83,208.76,9.0358396]
[1756891685871,3.73,208.81,208.76,7.42]
[1756891686270,6.89786386,208.82,208.76,7.42]
[1756891686474,5.28202426,208.81,208.76,7.42]
[1756891686669,3.73,208.8,208.74,1.6158396]
[1756891687772,5.28202426,208.82,208.75,7.42]
[1756891688276,9.03202426,208.82,208.75,7.42]
[1756891689277,1.6158396,208.81,208.75,7.42]
[1756891689472,3.75,208.8,208.75,7.42]
[1756891689878,5.3658396,208.81,208.75,7.42]
[1756891691176,1.6158396,208.79,208.72,9.0358396]
[1756891691472,3.75,208.78,208.72,9.0358396]
[1756891697485,5.28202426,208.81,208.74,1.6158396]
[1756891697684,3.75,208.83,208.77,7.66]
[1756891697685,6.89786386,208.83,208.77,7.66]
[1756891697883,1.6158396,208.83,208.77,7.66]
[1756891698085,6.89786386,208.83,208.77,7.66]
[1756891700687,3.75,208.82,208.77,7.66]
[1756891701588,3.75,208.8,208.77,7.66]
[1756891704991,3.75,208.8,208.75,7.66]
[1756891705392,3.75,208.8,208.74,1.6158396]
[1756891705592,3.75,208.8,208.75,7.66]
[1756891705989,3.75,208.8,208.74,1.6158396]
[1756891706893,3.75,208.8,208.75,7.66]
[1756891707496,3.75,208.8,208.74,1.6158396]
[1756891707693,3.75,208.8,208.75,7.66]
[1756891707897,3.75,208.8,208.74,1.6158396]
[1756891708190,3.75,208.8,208.75,7.66]
[1756891708890,3.75,208.8,208.68,4.03338077]
[1756891709096,3.75,208.8,208.75,7.66]
[1756891709395,1.6158396,208.82,208.75,7.66]
[1756891709590,5.28202426,208.84,208.78,1.6158396]
[1756891709791,5.28202426,208.84,208.78,9.2758396]
[1756891710598,5.28202426,208.84,208.78,7.66]
[1756891710999,6.89786386,208.84,208.78,7.66]
[1756891720706,119.88,208.88,208.83,7.66]
[1756891720707,5.28202426,208.86,208.83,7.66]
[1756891720907,9.03202426,208.86,208.83,7.66]
[1756891724098,3.76,208.85,208.73,7.71]
[1756891724302,9.04202426,208.86,208.8,7.71]
[1756891728712,9.04202426,208.86,208.8,9.3258396]
[1756891731609,7.96360183,208.89,208.84,1.6158396]
[1756891731610,5.28202426,208.89,208.84,1.6158396]
[1756891731810,9.04202426,208.89,208.85,7.71]
[1756891732010,3.76,208.88,208.85,7.71]
[1756891732408,3.76,208.88,208.84,1.6158396]
[1756891732610,3.76,208.88,208.85,7.71]
[1756891732814,3.76,208.87,208.85,7.71]
[1756891733414,3.76,208.89,208.85,7.71]
[1756891733615,3.76,208.89,208.84,1.6158396]
[1756891733809,3.76,208.89,208.85,7.71]
[1756891734016,3.76,208.89,208.84,1.6158396]
[1756891734309,3.76,208.89,208.85,7.71]
[1756891735115,3.76,208.89,208.84,1.6158396]
[1756891735512,3.76,208.89,208.85,7.71]
[1756891735811,6.89786386,208.9,208.85,7.71]
[1756891736316,3.76,208.88,208.85,7.71]
[1756891737220,6.89786386,208.9,208.83,7.71]
[1756891737416,5.28202426,208.9,208.83,7.71]
[1756891738128,3.76,208.89,208.83,7.71]
[1756891738326,3.76,208.88,208.83,7.71]
[1756891738529,3.76,208.87,208.79,7.71]
[1756891741526,5.28202426,208.89,208.79,7.71]
[1756891742022,5.28202426,208.89,208.82,7.71]
[1756891743724,5.28202426,208.89,208.76,2.52254842]
[1756891743925,3.76,208.87,208.76,2.52254842]
[1756891744226,5.28202426,208.88,208.77,7.71]
[1756891744429,3.76,208.86,208.77,7.71]
[1756891747731,5.28202426,208.88,208.8,7.71]
[1756891748130,5.28202426,208.89,208.8,7.71]
[1756891749636,9.03202426,208.89,208.8,7.71]
[1756891753632,5.28202426,208.88,208.8,7.71]
[1756891753832,9.03202426,208.89,208.8,7.71]
[1756891754027,5.28202426,208.89,208.8,7.71]
[1756891754233,9.04202426,208.88,208.8,7.71]
[1756891755834,3.76,208.88,208.8,7.71]
[1756891756737,5.28202426,208.88,208.8,7.71]
[1756891756941,3.76,208.87,208.8,7.71]
[1756891758837,9.04202426,208.87,208.8,7.71]
[1756891760841,5.28202426,208.88,208.8,7.71]
[1756891761344,9.04202426,208.88,208.8,7.71]
[1756891762441,5.28202426,208.87,208.8,7.71]
[1756891762642,9.04202426,208.88,208.8,7.71]
[1756891763343,5.28202426,208.87,208.8,7.71]
[1756891763948,9.04202426,208.88,208.8,7.71]
[1756891764948,3.76,208.88,208.8,7.71]
[1756891765344,9.04202426,208.88,208.81,2.52254842]
[1756891765547,9.04202426,208.88,208.82,7.56]
[1756891765743,5.28202426,208.89,208.82,7.56]
[1756891768250,5.28202426,208.9,208.82,7.56]
[1756891769745,9.04202426,208.89,208.82,7.56]
[1756891770446,3.76,208.88,208.82,7.56]
[1756891770648,5.28202426,208.88,208.82,7.56]
[1756891770851,3.76,208.87,208.82,7.56]
[1756891771446,5.28202426,208.88,208.82,7.56]
[1756891771650,3.76,208.86,208.82,7.56]
[1756891771854,3.76,208.87,208.79,7.56]
[1756891772055,9.04202426,208.87,208.79,7.56]
[1756891776862,3.76,208.86,208.79,7.56]
[1756891777061,3.76,208.85,208.79,7.56]
[1756891777666,5.28202426,208.87,208.79,7.56]
[1756891779363,3.76,208.86,208.79,7.56]
[1756891779865,9.04202426,208.86,208.79,7.56]
[1756891788764,3.74,208.85,208.79,7.56]
[1756891789976,5.28202426,208.86,208.75,10.48254842]
[1756891790178,3.74,208.83,208.75,10.48254842]
[1756891790468,3.74,208.83,208.75,7.96]
[1756891790673,3.73987449,208.82,208.75,7.96]
[1756891790877,3.73987449,208.81,208.75,7.96]
[1756891791067,3.73987449,208.8,208.74,7.96]
[1756891791271,3.73987449,208.79,208.74,7.96]
[1756891791574,3.74,208.81,208.74,7.96]
[1756891795576,7.80457268,208.84,208.74,7.96]
[1756891795771,7.80457268,208.84,208.69,4.02950101]
[1756891795772,3.74,208.81,208.7,7.96]
[1756891795966,5.28202426,208.82,208.7,7.96]
[1756891796172,3.65398847,208.81,208.7,7.96]
[1756891796478,3.74,208.79,208.7,7.96]
[1756891796675,3.65398847,208.78,208.7,7.96]
[1756891796871,3.65398847,208.77,208.7,7.96]
[1756891797071,3.74,208.79,208.7,7.96]
[1756891797578,3.74,208.79,208.72,1.61609398]
[1756891798078,3.74,208.79,208.7,7.96]
[1756891798279,3.74,208.79,208.71,1.61609398]
[1756891800280,1.61609398,208.78,208.7,9.57609398]
[1756891800480,3.74,208.77,208.7,9.57609398]
[1756891800673,1.61609398,208.74,208.66,9.57609398]
[1756891800981,3.74,208.73,208.66,9.57609398]
[1756891802578,3.74,208.73,208.69,7.96]
[1756891802779,3.74,208.75,208.69,7.96]
[1756891810483,5.35609398,208.75,208.69,7.96]
[1756891818290,5.36609398,208.8,208.73,1.61609398]
[1756891818490,5.36609398,208.8,208.74,7.57]
[1756891819191,3.75,208.83,208.76,7.57]
[1756891819493,5.36609398,208.83,208.76,7.57]
[1756891825292,5.36609398,208.83,208.77,1.61609398]
[1756891827995,3.75,208.83,208.77,1.61609398]
[1756891828397,3.74,208.84,208.79,7.57]
[1756891828697,1.61609398,208.85,208.79,7.57]
[1756891828899,3.74,208.84,208.76,1.61609398]
[1756891829102,3.74,208.84,208.76,9.18609398]
[1756891829298,1.61609398,208.81,208.73,1.61609398]
[1756891829503,5.35609398,208.79,208.71,7.57]
[1756891829702,3.74,208.79,208.71,7.57]
[1756891829900,1.61609398,208.78,208.71,7.57]
[1756891830404,3.74,208.79,208.72,1.61609398]
[1756891830602,3.74,208.79,208.75,7.57]
[1756891830903,3.74,208.82,208.76,9.18609398]
[1756891831102,3.74,208.82,208.76,7.57]
[1756891831900,5.35609398,208.82,208.76,7.57]
[1756891832502,3.74,208.82,208.76,7.57]
[1756891832692,5.35609398,208.82,208.76,7.57]
[1756891836107,6.89811824,208.84,208.76,9.18609398]
[1756891837303,5.28202426,208.84,208.66,4.02689648]
[1756891837502,5.28202426,208.86,208.81,7.57]
[1756891837698,5.28202426,208.86,208.8,1.61609398]
[1756891837904,5.28202426,208.86,208.8,9.18609398]
[1756891838611,9.02202426,208.87,208.8,9.18609398]
[1756891839110,5.28202426,208.89,208.83,7.57]
[1756891839304,3.74,208.87,208.83,7.57]
[1756891839809,3.74,208.87,208.82,7.57]
[1756891840000,5.28202426,208.88,208.84,7.57]
[1756891840206,6.89811824,208.91,208.84,7.57]
[1756891840506,9.02202426,208.9,208.84,7.57]
[1756891840703,1.61609398,208.89,208.84,7.57]
[1756891840906,3.74,208.86,208.79,7.57]
[1756891842611,9.04202426,208.88,208.81,7.76]
[1756891842913,3.76,208.88,208.81,7.76]
[1756891843814,3.76,208.86,208.81,7.76]
[1756891844310,6.89811824,208.87,208.81,7.76]
[1756891844510,3.76,208.86,208.81,7.76]
[1756891844711,6.89811824,208.87,208.81,7.76]
[1756891844910,10.65811824,208.87,208.81,7.76]
[1756891846102,3.76,208.87,208.81,9.37609398]
[1756891851704,5.28202426,208.89,208.81,9.37609398]
[1756891851705,9.04202426,208.89,208.81,9.37609398]
[1756891851904,3.76,208.89,208.83,1.61609398]
[1756891852409,6.89811824,208.9,208.83,1.61609398]
[1756891852608,5.28202426,208.92,208.86,7.76]
[1756891853310,5.28202426,208.92,208.86,9.37609398]
[1756891853913,5.28202426,208.92,208.88,1.61609398]
[1756891854113,327.30202426,208.94,208.88,1.61609398]
[1756891854315,325.78,208.94,208.88,9.37609398]
[1756891854616,325.78,208.94,208.88,7.76]
[1756891854914,331.06202426,208.94,208.88,7.76]
[1756891855109,325.78,208.94,208.88,7.76]
[1756891855618,331.06202426,208.94,208.88,7.76]
[1756891856916,3.76,208.94,208.88,9.37609398]
[1756891857515,3.76,208.94,208.88,7.76]
[1756891857721,5.28202426,208.95,208.88,7.76]
[1756891859020,9.04202426,208.95,208.88,7.76]
[1756891859518,3.76,208.95,208.88,7.76]
[1756891860521,5.28202426,208.96,208.89,7.76]
[1756891860722,9.04202426,208.98,208.89,7.76]
[1756891861218,3.76,208.98,208.89,7.76]
[1756891861417,9.04202426,209.01,208.92,7.76]
[1756891862919,5.28202426,209.02,208.92,7.76]
[1756891863322,5.28202426,209.03,208.92,7.76]
[1756891864223,5.28202426,209.02,208.92,7.76]
[1756891865720,5.28202426,209.02,208.95,7.76]
[1756891865914,127.58202426,209.04,208.95,7.76]
[1756891866822,122.3,209.04,208.95,7.76]
[1756891871523,3.74,209.03,208.95,7.76]
[1756891873623,118.54,209.04,208.95,7.76]
[1756891874125,3.74,209.02,208.9,7.68]
[1756891874430,3.74,208.98,208.9,7.68]
[1756891875531,5.28202426,208.98,208.9,7.68]
[1756891875728,3.74,208.96,208.9,7.68]
[1756891876633,3.74,209.0,208.93,2.52148824]
[1756891876931,3.74,209.0,208.94,7.68]
[1756891877930,5.28202426,209.02,208.94,7.68]
[1756891880130,5.28202426,209.01,208.94,7.68]
[1756891880633,5.28202426,209.02,208.94,7.68]
[1756891881531,5.28202426,209.01,208.94,7.68]
[1756891884226,3.74,209.0,208.94,7.68]
[1756891885228,5.28202426,209.02,208.9,2.52148824]
[1756891885432,3.74,209.0,208.9,10.20148824]
[1756891885629,3.74,208.99,208.9,10.20148824]
[1756891886131,3.74,208.98,208.9,10.20148824]
[1756891886731,3.74,208.98,208.9,7.68]
[1756891887633,44.62202426,208.99,208.9,7.68]
[1756891887832,5.28202426,208.98,208.87,2.52148824]
[1756891888034,3.74,208.96,208.87,10.20148824]
[1756891888232,5.28202426,208.96,208.84,10.20148824]
[1756891888533,5.28202426,208.94,208.84,7.68]
[1756891888733,3.74,208.93,208.84,7.68]
[1756891888936,3.74,208.93,208.85,7.68]
[1756891892239,5.28202426,208.92,208.81,7.68]
[1756891892538,3.74,208.87,208.77,7.68]
[1756891896739,22.26202426,208.89,208.77,7.68]
[1756891896941,3.74,208.88,208.77,7.68]
[1756891897142,22.26202426,208.89,208.77,7.68]
[1756891897439,3.74,208.88,208.77,7.68]
[1756891899133,22.26202426,208.89,208.77,7.68]
[1756891899336,16.98,208.89,208.77,7.68]
[1756891899532,3.74,208.88,208.77,7.68]
[1756891899738,16.98,208.89,208.77,7.68]
[1756891899931,3.74,208.88,208.77,7.68]
[1756891900138,16.98,208.89,208.77,7.68]
[1756891900341,2.52148824,208.84,208.73,7.68]
[1756891900543,3.74,208.83,208.73,7.68]
[1756891901341,33.7,208.83,208.73,7.68]
[1756891905144,3.74,208.82,208.73,7.68]
[1756891907441,29.96,208.83,208.73,7.68]
[1756891907641,3.74,208.82,208.73,7.68]
[1756891914846,29.96,208.83,208.73,7.68]
[1756891914847,2.52148824,208.81,208.73,7.68]
[1756891915041,3.74,208.8,208.73,7.68]
[1756891919561,1.61642674,208.78,208.73,7.68]
[1756891919760,1.61642674,208.78,208.71,7.94]
[1756891920250,3.74,208.79,208.73,7.94]
[1756891920452,1.61642674,208.83,208.77,7.94]
[1756891920650,3.74,208.86,208.79,7.94]
[1756891921453,1.61642674,208.83,208.69,7.94]
[1756891921762,1.61642674,208.81,208.74,7.94]
[1756891922963,1.61642674,208.83,208.76,7.94]
[1756891923166,3.74,208.82,208.76,7.94]
[1756891924962,1.61642674,208.83,208.76,9.55642674]
[1756891925153,3.74,208.86,208.68,73.34968309]
[1756891925154,1.61642674,208.85,208.78,1.61642674]
[1756891925357,1.61642674,208.85,208.79,7.94]
[1756891926358,1.61642674,208.81,208.75,7.94]
[1756891927065,3.74,208.8,208.75,7.94]
[1756891927264,1.61642674,208.77,208.69,9.55642674]
[1756891927658,1.61642674,208.77,208.69,7.94]
[1756891929362,1.61642674,208.77,208.7,1.61642674]
[1756891929665,1.61642674,208.77,208.71,7.94]
[1756891931166,1.61642674,208.75,208.71,7.94]
[1756891931363,5.35642674,208.73,208.69,7.94]
[1756891931558,1.61642674,208.71,208.69,7.94]
[1756891931768,1.61642674,208.71,208.65,7.24]
[1756891932260,1.61642674,208.69,208.61,1.61642674]
[1756891932565,1.61642674,208.69,208.59,321.84]
[1756891932566,1.61642674,208.7,208.64,7.24]
[1756891934265,1.61642674,208.68,208.62,7.24]
[1756891934864,1.61642674,208.7,208.62,7.24]
[1756891935868,1.61642674,208.71,208.64,7.24]
[1756891938165,1.61642674,208.69,208.63,1.61642674]
[1756891938364,1.61642674,208.69,208.63,7.24]
[1756891938566,3.75,208.71,208.63,7.24]
[1756891938769,1.61642674,208.68,208.62,7.24]
[1756891941071,3.75,208.65,208.62,7.24]
[1756891941274,1.61642674,208.64,208.57,7.24]
[1756891942166,1.61642674,208.62,208.55,7.24]
[1756891944168,3.75,208.59,208.55,7.24]
[1756891945374,5.36642674,208.58,208.55,7.24]
[1756891945671,5.36642674,208.58,208.51,7.24]
[1756891952182,1.61642674,208.58,208.51,7.24]
[1756891952379,1.61642674,208.6,208.52,1.61642674]
[1756891952685,1.61642674,208.61,208.55,7.24]
[1756891954686,1.61642674,208.59,208.55,7.24]
[1756891954885,1.61642674,208.59,208.53,7.24]
[1756891955685,3.75,208.62,208.55,7.24]
[1756891955686,1.61642674,208.62,208.55,7.24]
[1756891958787,5.36642674,208.62,208.55,7.24]
[1756891959484,1.61642674,208.6,208.55,7.24]
[1756891959684,1.61642674,208.6,208.53,7.24]
[1756891959880,1.61642674,208.58,208.53,7.24]
[1756891960086,1.61642674,208.56,208.49,7.24]
[1756891960989,1.61642674,208.58,208.53,7.24]
[1756891961386,1.61642674,208.58,208.52,1.61642674]
[1756891961987,1.61642674,208.58,208.51,7.76]
[1756891966697,1.61642674,208.57,208.51,7.76]
[1756891967283,1.61642674,208.57,208.51,9.37642674]
[1756891967489,5.36642674,208.59,208.51,9.37642674]
[1756891967892,1.61642674,208.59,208.51,9.37642674]
[1756891969884,1.61642674,208.61,208.53,1.61642674]
[1756891970084,14.38,208.66,208.43,9.46]
[1756891970085,1.61642674,208.63,208.56,7.76]
[1756891970494,3.75,208.59,208.56,7.76]
[1756891971092,1.61642674,208.6,208.53,7.76]
[1756891972688,1.61642674,208.58,208.5,1.61642674]
[1756891972893,1.61642674,208.58,208.51,7.76]
[1756891973295,3.75,208.59,208.52,1.61642674]
[1756891973493,3.75,208.59,208.53,7.76]
[1756891976598,1.61642674,208.58,208.51,7.76]
[1756891979601,3.75,208.6,208.51,7.76]
[1756891982904,5.28202426,208.62,208.52,7.76]
[1756891983303,5.28202426,208.61,208.52,7.76]
[1756891984206,3.75,208.6,208.52,7.76]
[1756891984399,9.03202426,208.6,208.52,7.76]
[1756891985306,5.28202426,208.59,208.52,7.76]
[1756891987800,5.28202426,208.59,208.55,7.76]
[1756891988101,5.28202426,208.62,208.55,7.76]
[1756891990508,5.28202426,208.63,208.55,7.76]
[1756891992908,5.28202426,208.66,208.6,2.53051867]
[1756891993115,5.28202426,208.67,208.61,7.41]
[1756891993310,109.47800468,208.68,208.61,7.41]
[1756891994513,3.75,208.67,208.61,7.41]
[1756891996412,9.03202426,208.67,208.61,7.41]
[1756891996728,3.75,208.66,208.58,7.41]
[1756891996919,9.03202426,208.66,208.58,7.41]
[1756891999417,5.28202426,208.67,208.59,7.41]
[1756892000113,5.28202426,208.67,208.61,2.53051867]
[1756892000310,104.19598042,208.68,208.62,7.41]
[1756892002023,123.36202426,208.72,208.65,7.41]
[1756892002222,118.08,208.72,208.65,7.41]
[1756892003619,9.03202426,208.74,208.65,7.41]
[1756892003813,5.28202426,208.77,208.68,7.41]
[1756892004819,43.89202426,208.78,208.68,7.41]
[1756892006321,38.61,208.78,208.68,7.41]
[1756892006724,3.75,208.78,208.71,7.41]
[1756892008628,3.0644,208.79,208.71,7.41]
[1756892009125,6.8144,208.79,208.71,7.41]
[1756892009323,3.75,208.78,208.71,7.41]
[1756892012820,3.0644,208.79,208.73,2.53051867]
[1756892013127,3.0644,208.79,208.74,7.41]
[1756892013315,3.0644,208.79,208.73,2.53051867]
[1756892013624,3.0644,208.79,208.73,9.94051867]
[1756892013826,3.0644,208.79,208.73,7.41]
[1756892015733,3.75,208.78,208.7,2.53051867]
[1756892017933,3.0644,208.79,208.65,7.41]
[1756892017934,3.75,208.75,208.65,7.41]
[1756892019728,3.75,208.75,208.65,9.94051867]
[1756892020028,3.75,208.75,208.66,7.41]
[1756892020829,3.75,208.75,208.68,2.53051867]
[1756892021029,3.75,208.75,208.69,7.41]
[1756892022933,5.28202426,208.77,208.69,7.41]
[1756892023135,63.64642426,208.79,208.69,7.41]
[1756892024335,58.3644,208.79,208.69,7.41]